fUSD/lending_fUSD_20250923
["ID","MTS","AMOUNT","RATE_DAILY","PERIOD"]
[387145635,1758592233283,-487.42,0.00019993,2]
[387145636,1758592233293,-601.93,0.00019993,2]
[387145637,1758592233303,-400.0,0.00019993,2]
[387145638,1758592233313,-400.0,0.00019993,2]
[387145639,1758592233323,-500.0,0.00019993,2]
[387145640,1758592233332,-400.0,0.00019993,2]
[387145641,1758592233342,-400.0,0.00019993,2]
[387145642,1758592233351,-400.0,0.00019993,2]
[387145643,1758592233362,-400.0,0.00019993,2]
[387145644,1758592233371,-400.0,0.00019993,2]
[387145645,1758592233381,-400.0,0.00019993,2]
[387145646,1758592233391,-400.0,0.00019993,2]
[387145647,1758592233401,-430.53,0.00019993,2]
[387145648,1758592233410,-595.01,0.00019993,2]
[387145649,1758592233420,-400.0,0.00019993,2]
[387145650,1758592233430,-402.69840645,0.00019993,2]
[387145651,1758592233439,-647.83,0.00019993,2]
[387145652,1758592233448,-400.0,0.00019993,2]
[387145653,1758592233458,-400.0,0.00019993,2]
[387145654,1758592233468,-400.0,0.00019993,2]
[387145655,1758592233478,-427.03,0.00019993,2]
[387145656,1758592233488,-400.0,0.00019993,2]
[387145657,1758592233498,-504.03,0.00019993,2]
[387145658,1758592233508,-400.0,0.00019993,2]
[387145659,1758592233517,-400.0,0.00019993,2]
[387145660,1758592233527,-541.61,0.00019993,2]
[387145661,1758592233537,-402.19748034,0.00019993,2]
[387145662,1758592233546,-648.31,0.00019993,2]
[387145663,1758592233556,-402.14760147,0.00019993,2]
[387145664,1758592233565,-400.0,0.00019993,2]
[387145665,1758592233575,-400.0,0.00019993,2]
[387145666,1758592233584,-400.6958386,0.00019993,2]
[387145667,1758592233594,-400.0,0.00019993,2]
[387145668,1758592233603,-400.0,0.00019993,2]
[387145669,1758592233613,-400.0,0.00019993,2]
[387145670,1758592233622,-400.0,0.00019993,2]
[387145671,1758592233631,-400.0,0.00019993,2]
[387145672,1758592233642,-418.36,0.00019993,2]
[387145673,1758592233652,-400.0,0.00019993,2]
[387145674,1758592233662,-219.57456384,0.00019993,2]
[387145675,1758592233679,-180.42543616,0.00019993,2]
[387145676,1758592233689,-400.0,0.00019993,2]
[387145677,1758592233700,-400.0,0.00019993,2]
[387145678,1758592233711,-618.23,0.00019993,2]
[387145679,1758592233722,-400.0,0.00019993,2]
[387145680,1758592233732,-400.0,0.00019993,2]
[387145681,1758592233741,-400.0,0.00019993,2]
[387145682,1758592233751,-400.0,0.00019993,2]
[387145683,1758592233761,-243.28815409,0.00019993,2]
[387145684,1758592233775,-156.71184591,0.00019993,2]
[387145685,1758592233786,-400.0,0.00019993,2]
[387145686,1758592233795,-400.0,0.00019993,2]
[387145687,1758592233805,-400.0,0.00019993,2]
[387145688,1758592233814,-400.0,0.00019993,2]
[387145689,1758592233824,-286.97828647,0.00019993,2]
[387145690,1758592233834,-400.0,0.00019993,2]
[387145691,1758592233843,-400.0,0.00019993,2]
[387145692,1758592233853,-99.943444,0.00019993,2]
[387145693,1758592233865,-300.056556,0.00019993,2]
[387145694,1758592233875,-429.83,0.00019993,2]
[387145695,1758592233884,-400.0,0.00019993,2]
[387145696,1758592233894,-328.192685,0.00019993,2]
[387145697,1758592233904,-400.0,0.00019993,2]
[387145698,1758592233915,-400.0,0.00019993,2]
[387145699,1758592233924,-154.199482,0.00019993,2]
[387145700,1758592233934,-164.81715,0.00019993,2]
[387145701,1758592233944,-190.14678279,0.00019993,2]
[387145702,1758592233956,-209.85321721,0.00019993,2]
[387145703,1758592233966,-400.0,0.00019993,2]
[387145704,1758592233975,-598.59,0.00019993,2]
[387145705,1758592233985,-157.852366,0.00019993,2]
[387145706,1758592233995,-491.35,0.00019993,2]
[387145707,1758592234004,-401.27325057,0.00019993,2]
[387145708,1758592234014,-400.0,0.00019993,2]
[387145709,1758592234023,-401.45337056,0.00019993,2]
[387145710,1758592234033,-249.665221,0.00019993,2]
[387145711,1758592234043,-400.0,0.00019993,2]
[387145712,1758592234053,-404.14238096,0.00019993,2]
[387145713,1758592234062,-53.22555737,0.00019993,2]
[387145714,1758592234075,-346.77444263,0.00019993,2]
[387145715,1758592234085,-402.06157894,0.00019993,2]
[387145716,1758592234095,-590.9,0.00019993,2]
[387145717,1758592234103,-517.03957504,0.00019993,2]
[387145718,1758592234113,-363.1675183,0.00019993,2]
[387145719,1758592234122,-400.0,0.00019993,2]
[387145720,1758592234131,-400.0,0.00019993,2]
[387145721,1758592234141,-400.0,0.00019993,2]
[387145722,1758592234150,-501.64018981,0.00019993,2]
[387145723,1758592234159,-400.0,0.00019993,2]
[387145724,1758592234169,-400.0,0.00019993,2]
[387145725,1758592234180,-400.0,0.00019993,2]
[387145726,1758592234191,-443.8138456,0.00019993,2]
[387145727,1758592234201,-400.0,0.00019993,2]
[387145728,1758592234210,-400.0,0.00019993,2]
[387145729,1758592234220,-400.0,0.00019993,2]
[387145730,1758592234229,-401.90081925,0.00019993,2]
[387145731,1758592234238,-400.0,0.00019993,2]
[387145732,1758592234248,-400.0,0.00019993,2]
[387145733,1758592234257,-400.0,0.00019993,2]
[387145734,1758592234267,-400.0,0.00019993,2]
[387145735,1758592234276,-400.0,0.00019993,2]
[387145736,1758592234286,-400.0,0.00019993,2]
[387145737,1758592234295,-400.0,0.00019993,2]
[387145738,1758592234305,-400.0,0.00019993,2]
[387145739,1758592234314,-400.0,0.00019993,2]
[387145740,1758592234324,-400.0,0.00019993,2]
[387145741,1758592234333,-400.0,0.00019993,2]
[387145742,1758592234342,-400.0,0.00019993,2]
[387145743,1758592234351,-419.4664186,0.00019993,2]
[387145744,1758592234361,-400.0,0.00019993,2]
[387145745,1758592234370,-496.59,0.00019993,2]
[387145746,1758592234379,-400.0,0.00019993,2]
[387145747,1758592234388,-400.0,0.00019993,2]
[387145748,1758592234398,-400.0,0.00019993,2]
[387145749,1758592234408,-401.52149457,0.00019993,2]
[387145750,1758592234418,-451.04,0.00019993,2]
[387145751,1758592234428,-400.0,0.00019993,2]
[387145752,1758592234437,-400.0,0.00019993,2]
[387145753,1758592234447,-400.0,0.00019993,2]
[387145754,1758592234456,-400.0,0.00019993,2]
[387145755,1758592234465,-400.0,0.00019993,2]
[387145756,1758592234475,-400.0,0.00019993,2]
[387145757,1758592234484,-400.0,0.00019993,2]
[387145758,1758592234494,-400.0,0.00019993,2]
[387145759,1758592234503,-400.0,0.00019993,2]
[387145760,1758592234513,-400.0,0.00019993,2]
[387145761,1758592234522,-400.0,0.00019993,2]
[387145762,1758592234532,-400.0,0.00019993,2]
[387145763,1758592234542,-408.20912594,0.00019993,2]
[387145764,1758592234551,-400.70522927,0.00019993,2]
[387145765,1758592234561,-400.0,0.00019993,2]
[387145766,1758592234571,-400.0,0.00019993,2]
[387145767,1758592234580,-400.0,0.00019993,2]
[387145768,1758592234589,-400.0,0.00019993,2]
[387145769,1758592234599,-400.0,0.00019993,2]
[387145770,1758592234609,-400.0,0.00019993,2]
[387145771,1758592234618,-400.0,0.00019993,2]
[387145772,1758592234628,-400.0,0.00019993,2]
[387145773,1758592234638,-406.32690712,0.00019993,2]
[387145774,1758592234647,-400.0,0.00019993,2]
[387145775,1758592234656,-463.28917746,0.00019993,2]
[387145776,1758592234666,-465.85,0.00019993,2]
[387145777,1758592234675,-638.41,0.00019993,2]
[387145778,1758592234685,-400.0,0.00019993,2]
[387145779,1758592234694,-400.0,0.00019993,2]
[387145780,1758592234705,-400.0,0.00019993,2]
[387145781,1758592234714,-400.0,0.00019993,2]
[387145782,1758592234724,-400.0,0.00019993,2]
[387145783,1758592234733,-400.0,0.00019993,2]
[387145784,1758592234742,-400.0,0.00019993,2]
[387145785,1758592234751,-400.0,0.00019993,2]
[387145786,1758592234761,-400.0,0.00019993,2]
[387145787,1758592234771,-400.0,0.00019993,2]
[387145788,1758592234784,-191.51943284,0.00019993,2]
[387145789,1758592234795,-400.0,0.00019993,2]
[387145790,1758592234804,-400.0,0.00019993,2]
[387145791,1758592234815,-400.0,0.00019993,2]
[387145792,1758592234825,-400.80227807,0.00019993,2]
[387145793,1758592234834,-400.0,0.00019993,2]
[387145794,1758592234845,-400.0,0.00019993,2]
[387145795,1758592234855,-401.00885179,0.00019993,2]
[387145796,1758592234865,-530.36,0.00019993,2]
[387145797,1758592234875,-479.88,0.00019993,2]
[387145798,1758592234886,-295.80007297,0.00019993,2]
[387145799,1758592234902,-106.96196119,0.00019993,2]
[387145800,1758592234911,-404.90065133,0.00019993,2]
[387145801,1758592234921,-789.1,0.00019993,2]
[387145802,1758592234930,-400.0,0.00019993,2]
[387145803,1758592234939,-400.0,0.00019993,2]
[387145804,1758592234949,-400.0,0.00019993,2]
[387145805,1758592234958,-400.0,0.00019993,2]
[387145806,1758592234967,-400.0,0.00019993,2]
[387145807,1758592234977,-400.0,0.00019993,2]
[387145808,1758592234986,-400.0,0.00019993,2]
[387145809,1758592234996,-405.36246171,0.00019993,2]
[387145810,1758592235005,-403.11962414,0.00019993,2]
[387145811,1758592235015,-400.0,0.00019993,2]
[387145812,1758592235024,-400.0,0.00019993,2]
[387145813,1758592235033,-400.0,0.00019993,2]
[387145814,1758592235043,-234.06019822,0.00019993,2]
[387145815,1758592235080,-165.93980178,0.00019993,2]
[387145816,1758592235089,-165.94454354,0.00019993,2]
[387145817,1758592235108,-234.05545646,0.00019993,2]
[387145818,1758592235118,-400.0,0.00019993,2]
[387145819,1758592235127,-400.0,0.00019993,2]
[387145820,1758592235136,-400.0,0.00019993,2]
[387145821,1758592235145,-404.20637188,0.00019993,2]
[387145822,1758592235155,-400.0,0.00019993,2]
[387145823,1758592235164,-400.0,0.00019993,2]
[387145824,1758592235173,-400.0,0.00019993,2]
[387145825,1758592235183,-400.0,0.00019993,2]
[387145826,1758592235192,-400.0,0.00019993,2]
[387145827,1758592235201,-400.0,0.00019993,2]
[387145828,1758592235211,-400.0,0.00019993,2]
[387145829,1758592235220,-400.0,0.00019993,2]
[387145830,1758592235230,-400.0,0.00019993,2]
[387145831,1758592235239,-400.0,0.00019993,2]
[387145832,1758592235249,-400.0,0.00019993,2]
[387145833,1758592235258,-400.0,0.00019993,2]
[387145834,1758592235268,-402.8589787,0.00019993,2]
[387145835,1758592235277,-400.0,0.00019993,2]
[387145836,1758592235287,-400.0,0.00019993,2]
[387145837,1758592235301,-400.0,0.00019993,2]
[387145838,1758592235311,-400.0,0.00019993,2]
[387145839,1758592235335,-400.0,0.00019993,2]
[387145840,1758592235344,-400.0,0.00019993,2]
[387145841,1758592235353,-474.54,0.00019993,2]
[387145842,1758592235363,-171.618162,0.00019993,2]
[387145843,1758592235372,-407.71530532,0.00019993,2]
[387145844,1758592235382,-401.73089527,0.00019993,2]
[387145845,1758592235392,-414.02107923,0.00019993,2]
[387145846,1758592235403,-400.0,0.00019993,2]
[387145847,1758592235413,-406.54075961,0.00019993,2]
[387145848,1758592235422,-500.0,0.00019993,2]
[387145849,1758592235432,-400.0,0.00019993,2]
[387145850,1758592235441,-400.0,0.00019993,2]
[387145851,1758592235451,-156.07132702,0.00019993,2]
[387145852,1758592235460,-400.0,0.00019993,2]
[387145853,1758592235470,-400.0,0.00019993,2]
[387145854,1758592235480,-400.0,0.00019993,2]
[387145855,1758592235490,-400.0,0.00019993,2]
[387145856,1758592235500,-401.80893976,0.00019993,2]
[387145857,1758592235509,-400.0,0.00019993,2]
[387145858,1758592235519,-400.0,0.00019993,2]
[387145859,1758592235529,-400.0,0.00019993,2]
[387145860,1758592235542,-400.0,0.00019993,2]
[387145861,1758592235553,-400.70059107,0.00019993,2]
[387145862,1758592235564,-400.0,0.00019993,2]
[387145863,1758592235574,-400.0,0.00019993,2]
[387145864,1758592235583,-330.62040367,0.00019993,2]
[387145865,1758592235597,-69.37959633,0.00019993,2]
[387145866,1758592235607,-400.0,0.00019993,2]
[387145867,1758592235617,-403.41936024,0.00019993,2]
[387145868,1758592235627,-400.0,0.00019993,2]
[387145869,1758592235638,-401.32455262,0.00019993,2]
[387145870,1758592235647,-400.0,0.00019993,2]
[387145871,1758592235657,-400.0,0.00019993,2]
[387145872,1758592235667,-400.0,0.00019993,2]
[387145873,1758592235676,-771.67,0.00019993,2]
[387145874,1758592235688,-310.14294874,0.00019993,2]
[387145875,1758592235708,-89.85705126,0.00019993,2]
[387145876,1758592235719,-400.0,0.00019993,2]
[387145877,1758592235729,-179.73722348,0.00019993,2]
[387145878,1758592235740,-220.26277652,0.00019993,2]
[387145879,1758592235750,-150.27268314,0.00019993,2]
[387145880,1758592235762,-249.72731686,0.00019993,2]
[387145881,1758592235778,-400.0,0.00019993,2]
[387145882,1758592235787,-69.38456136,0.00019993,2]
[387145883,1758592235799,-330.61543864,0.00019993,2]
[387145884,1758592235809,-226.36035621,0.00019993,2]
[387145885,1758592235821,-173.63964379,0.00019993,2]
[387145886,1758592235830,-400.0,0.00019993,2]
[387145887,1758592235839,-362.02662034,0.00019993,2]
[387145888,1758592237920,-400.0,0.00019992,2]
[387145889,1758592237931,-403.64933375,0.00019992,2]
[387145890,1758592237941,-37.97337966,0.00019993,2]
[387145891,1758592237953,-94.76101482,0.00019993,2]
[387145892,1758592237993,-305.23898518,0.00019993,2]
[387145893,1758592238004,-400.0,0.00019993,2]
[387145894,1758592238015,-401.21699189,0.00019993,2]
[387145895,1758592238024,-400.0,0.00019993,2]
[387145896,1758592238035,-4.37683227,0.00019993,2]
[387145898,1758592238527,-395.62316773,0.00019993,2]
[387145899,1758592238537,-298.59787316,0.00019993,2]
[387145900,1758592238549,-222.37314332,0.00019993,2]
[387145901,1758592238559,-568.28,0.00019993,2]
[387145902,1758592238569,-401.87023403,0.00019993,2]
[387145903,1758592238578,-502.49334344,0.00019993,2]
[387145904,1758592238588,-429.32096339,0.00019993,2]
[387145905,1758592238598,-757.38,0.00019993,2]
[387145906,1758592238607,-400.0,0.00019993,2]
[387145907,1758592238617,-400.0,0.00019993,2]
[387145908,1758592238626,-400.0,0.00019993,2]
[387145909,1758592238636,-400.0,0.00019993,2]
[387145910,1758592238646,-400.0,0.00019993,2]
[387145911,1758592238656,-400.0,0.00019993,2]
[387145912,1758592238665,-400.0,0.00019993,2]
[387145913,1758592238674,-400.0,0.00019993,2]
[387145914,1758592238684,-400.0,0.00019993,2]
[387145915,1758592238694,-400.0,0.00019993,2]
[387145916,1758592238703,-400.0,0.00019993,2]
[387145917,1758592238713,-1866.2823158,0.00019993,2]
[387145918,1758592238770,-400.0,0.00019992,2]
[387145919,1758592238783,-178.65,0.00019992,2]
[387145920,1758592238796,-221.35,0.00019992,2]
[387145921,1758592238806,-199.84407084,0.00019993,2]
[387145922,1758592238913,-33.33361336,0.00019993,2]
[387145923,1758592238923,-404.16113768,0.00019993,2]
[387145924,1758592238932,-404.16113768,0.00019993,2]
[387145925,1758592238942,-400.0,0.00019993,2]
[387145926,1758592238951,-404.25174583,0.00019993,2]
[387145927,1758592238961,-400.0,0.00019993,2]
[387145928,1758592238970,-424.41,0.00019993,2]
[387145929,1758592238979,-347.16338346,0.00019993,2]
[387145930,1758592238988,-590.85,0.00019993,2]
[387145931,1758592238997,-1147.92,0.00019993,2]
[387145932,1758592239007,-401.74902248,0.00019993,2]
[387145933,1758592239016,-400.60259614,0.00019993,2]
[387145934,1758592239026,-777.99,0.00019993,2]
[387145935,1758592239035,-402.06687742,0.00019993,2]
[387145936,1758592239044,-400.0,0.00019993,2]
[387145937,1758592239053,-400.0,0.00019993,2]
[387145938,1758592239063,-522.98,0.00019993,2]
[387145939,1758592239072,-400.0,0.00019993,2]
[387145940,1758592239081,-400.0,0.00019993,2]
[387145941,1758592239097,-400.0,0.00019993,2]
[387145942,1758592239111,-400.0,0.00019993,2]
[387145943,1758592239121,-653.67,0.00019993,2]
[387145944,1758592239131,-401.25618153,0.00019993,2]
[387145945,1758592239140,-404.54098298,0.00019993,2]
[387145946,1758592239149,-400.0,0.00019993,2]
[387145947,1758592239159,-619.15,0.00019993,2]
[387145948,1758592239168,-400.0,0.00019993,2]
[387145949,1758592239177,-400.0,0.00019993,2]
[387145950,1758592239186,-411.35,0.00019993,2]
[387145951,1758592239196,-1402.28,0.00019993,2]
[387145952,1758592239205,-400.0,0.00019993,2]
[387145953,1758592239215,-400.0,0.00019993,2]
[387145954,1758592239223,-400.0,0.00019993,2]
[387145955,1758592239232,-401.63958188,0.00019993,2]
[387145956,1758592239242,-400.0,0.00019993,2]
[387145957,1758592239251,-400.0,0.00019993,2]
[387145958,1758592239260,-402.4146673,0.00019993,2]
[387145959,1758592239270,-403.79623678,0.00019993,2]
[387145960,1758592239279,-400.0,0.00019993,2]
[387145961,1758592239289,-400.0,0.00019993,2]
[387145962,1758592239298,-400.0,0.00019993,2]
[387145963,1758592239307,-402.09946937,0.00019993,2]
[387145964,1758592239317,-400.0,0.00019993,2]
[387145965,1758592239326,-400.0,0.00019993,2]
[387145966,1758592239339,-400.0,0.00019993,2]
[387145967,1758592239348,-400.0,0.00019993,2]
[387145968,1758592239357,-400.0,0.00019993,2]
[387145969,1758592239366,-400.0,0.00019993,2]
[387145970,1758592239376,-400.0,0.00019993,2]
[387145971,1758592239385,-400.0,0.00019993,2]
[387145972,1758592239395,-422.17451814,0.00019993,2]
[387145973,1758592239405,-400.0,0.00019993,2]
[387145974,1758592239415,-1025.1,0.00019993,2]
[387145975,1758592239425,-401.50815603,0.00019993,2]
[387145976,1758592239435,-794.16,0.00019993,2]
[387145977,1758592239444,-527.89,0.00019993,2]
[387145978,1758592239454,-400.0,0.00019993,2]
[387145979,1758592239463,-407.51528716,0.00019993,2]
[387145980,1758592239473,-400.0,0.00019993,2]
[387145981,1758592239482,-400.0,0.00019993,2]
[387145982,1758592239492,-400.0,0.00019993,2]
[387145983,1758592239501,-400.0,0.00019993,2]
[387145984,1758592239511,-400.0,0.00019993,2]
[387145985,1758592239520,-400.0,0.00019993,2]
[387145986,1758592239530,-400.0,0.00019993,2]
[387145987,1758592239540,-400.0,0.00019993,2]
[387145988,1758592239551,-400.0,0.00019993,2]
[387145989,1758592239560,-400.0,0.00019993,2]
[387145990,1758592239572,-400.0,0.00019993,2]
[387145991,1758592239582,-400.0,0.00019993,2]
[387145992,1758592239592,-501.8677896,0.00019993,2]
[387145993,1758592239602,-400.0,0.00019993,2]
[387145994,1758592239611,-400.0,0.00019993,2]
[387145995,1758592239621,-268.9388994,0.00019993,2]
[387145996,1758592239630,-400.0,0.00019993,2]
[387145997,1758592239640,-400.0,0.00019993,2]
[387145998,1758592239649,-400.0,0.00019993,2]
[387145999,1758592239658,-400.0,0.00019993,2]
[387146000,1758592239668,-400.0,0.00019993,2]
[387146001,1758592239677,-400.0,0.00019993,2]
[387146002,1758592239687,-400.0,0.00019993,2]
[387146003,1758592239697,-400.0,0.00019993,2]
[387146004,1758592239707,-613.17,0.00019993,2]
[387146005,1758592239718,-400.0,0.00019993,2]
[387146006,1758592239727,-400.0,0.00019993,2]
[387146007,1758592239737,-448.70682607,0.00019993,2]
[387146008,1758592239746,-482.42,0.00019993,2]
[387146009,1758592239755,-687.82,0.00019993,2]
[387146010,1758592239764,-400.0,0.00019993,2]
[387146011,1758592239775,-400.0,0.00019993,2]
[387146012,1758592239784,-400.0,0.00019993,2]
[387146013,1758592239794,-400.0,0.00019993,2]
[387146014,1758592239803,-400.0,0.00019993,2]
[387146015,1758592239813,-400.0,0.00019993,2]
[387146016,1758592239823,-400.0,0.00019993,2]
[387146017,1758592239833,-1241.83,0.00019993,2]
[387146018,1758592239843,-1058.98,0.00019993,2]
[387146019,1758592239852,-1263.8,0.00019993,2]
[387146020,1758592239862,-400.0,0.00019993,2]
[387146021,1758592239872,-400.0,0.00019993,2]
[387146022,1758592239881,-403.33853834,0.00019993,2]
[387146023,1758592239891,-400.0,0.00019993,2]
[387146024,1758592239901,-401.92761866,0.00019993,2]
[387146025,1758592239910,-400.0,0.00019993,2]
[387146026,1758592239920,-400.0,0.00019993,2]
[387146027,1758592239929,-400.0,0.00019993,2]
[387146028,1758592239939,-483.31,0.00019993,2]
[387146029,1758592239948,-400.0,0.00019993,2]
[387146030,1758592239957,-401.45807384,0.00019993,2]
[387146031,1758592239967,-749.51,0.00019993,2]
[387146032,1758592239977,-404.32422314,0.00019993,2]
[387146033,1758592239987,-1148.87,0.00019993,2]
[387146034,1758592239996,-3015.08,0.00019993,2]
[387146035,1758592240006,-400.0,0.00019993,2]
[387146036,1758592240015,-400.0,0.00019993,2]
[387146037,1758592240025,-400.0,0.00019993,2]
[387146038,1758592240034,-400.0,0.00019993,2]
[387146039,1758592240053,-400.0,0.00019993,2]
[387146040,1758592240063,-400.0,0.00019993,2]
[387146041,1758592240072,-400.0,0.00019993,2]
[387146042,1758592240082,-400.0,0.00019993,2]
[387146043,1758592240092,-400.0,0.00019993,2]
[387146044,1758592240101,-589.94,0.00019993,2]
[387146045,1758592240111,-400.0,0.00019993,2]
[387146046,1758592240120,-401.40464899,0.00019993,2]
[387146047,1758592240129,-580.72,0.00019993,2]
[387146048,1758592240139,-400.0,0.00019993,2]
[387146049,1758592240148,-400.0,0.00019993,2]
[387146050,1758592240158,-406.75,0.00019993,2]
[387146051,1758592240167,-400.0,0.00019993,2]
[387146052,1758592240177,-400.0,0.00019993,2]
[387146053,1758592240186,-401.31047861,0.00019993,2]
[387146054,1758592240196,-400.0,0.00019993,2]
[387146055,1758592240205,-400.0,0.00019993,2]
[387146056,1758592240214,-400.0,0.00019993,2]
[387146057,1758592240224,-400.0,0.00019993,2]
[387146058,1758592240233,-401.92331821,0.00019993,2]
[387146059,1758592240242,-400.0,0.00019993,2]
[387146060,1758592240251,-500.0,0.00019993,2]
[387146061,1758592240261,-500.0,0.00019993,2]
[387146062,1758592240271,-1163.29,0.00019993,2]
[387146063,1758592240281,-400.0,0.00019993,2]
[387146064,1758592240290,-400.0,0.00019993,2]
[387146065,1758592240299,-400.0,0.00019993,2]
[387146066,1758592240308,-400.0,0.00019993,2]
[387146067,1758592240318,-400.0,0.00019993,2]
[387146068,1758592240327,-400.0,0.00019993,2]
[387146069,1758592240337,-400.71992167,0.00019993,2]
[387146070,1758592240346,-400.0,0.00019993,2]
[387146071,1758592240355,-402.22543326,0.00019993,2]
[387146072,1758592240365,-400.0,0.00019993,2]
[387146073,1758592240375,-400.0,0.00019993,2]
[387146074,1758592240385,-402.44391293,0.00019993,2]
[387146075,1758592240396,-418.47186529,0.00019993,2]
[387146076,1758592240406,-400.0,0.00019993,2]
[387146077,1758592240416,-400.0,0.00019993,2]
[387146078,1758592240425,-400.0,0.00019993,2]
[387146079,1758592240434,-2022.61,0.00019993,2]
[387146081,1758592240444,-404.83255892,0.00019993,2]
[387146082,1758592240453,-2705.96,0.00019993,2]
[387146083,1758592240463,-400.0,0.00019993,2]
[387146084,1758592240473,-400.0,0.00019993,2]
[387146085,1758592240483,-402.348367,0.00019993,2]
[387146086,1758592240492,-400.0,0.00019993,2]
[387146087,1758592240501,-400.0,0.00019993,2]
[387146088,1758592240511,-896.67,0.00019993,2]
[387146089,1758592240520,-400.0,0.00019993,2]
[387146090,1758592240530,-400.0,0.00019993,2]
[387146091,1758592240539,-400.0,0.00019993,2]
[387146092,1758592240548,-400.0,0.00019993,2]
[387146093,1758592240558,-400.0,0.00019993,2]
[387146094,1758592240567,-400.0,0.00019993,2]
[387146095,1758592240577,-956.08,0.00019993,2]
[387146096,1758592240587,-402.43253542,0.00019993,2]
[387146097,1758592240598,-400.0,0.00019993,2]
[387146098,1758592240607,-217.1896426,0.00019993,2]
[387146099,1758592240618,-400.0,0.00019993,2]
[387146100,1758592240628,-400.0,0.00019993,2]
[387146101,1758592240639,-400.0,0.00019993,2]
[387146102,1758592240649,-400.0,0.00019993,2]
[387146103,1758592240659,-409.03842465,0.00019993,2]
[387146104,1758592240670,-4110.62,0.00019993,2]
[387146105,1758592240680,-400.0,0.00019993,2]
[387146106,1758592240692,-400.0,0.00019993,2]
[387146107,1758592240702,-400.0,0.00019993,2]
[387146108,1758592240714,-419.92334904,0.00019993,2]
[387146109,1758592240726,-408.61441394,0.00019993,2]
[387146110,1758592240736,-436.87905541,0.00019993,2]
[387146111,1758592240746,-400.0,0.00019993,2]
[387146112,1758592240756,-400.0,0.00019993,2]
[387146113,1758592240767,-400.0,0.00019993,2]
[387146114,1758592240779,-400.0,0.00019993,2]
[387146115,1758592240789,-850.35,0.00019993,2]
[387146116,1758592240800,-400.0,0.00019993,2]
[387146117,1758592240810,-400.0,0.00019993,2]
[387146118,1758592240821,-400.0,0.00019993,2]
[387146119,1758592240831,-400.0,0.00019993,2]
[387146120,1758592240841,-402.96514503,0.00019993,2]
[387146121,1758592240852,-4455.9,0.00019993,2]
[387146122,1758592240862,-400.0,0.00019993,2]
[387146123,1758592240872,-401.16988901,0.00019993,2]
[387146124,1758592240882,-564.31,0.00019993,2]
[387146125,1758592240893,-512.39,0.00019993,2]
[387146126,1758592240903,-400.0,0.00019993,2]
[387146127,1758592240914,-400.0,0.00019993,2]
[387146128,1758592240924,-400.0,0.00019993,2]
[387146129,1758592240935,-400.0,0.00019993,2]
[387146130,1758592240945,-400.0,0.00019993,2]
[387146131,1758592240955,-400.0,0.00019993,2]
[387146132,1758592240965,-403.71068284,0.00019993,2]
[387146133,1758592240975,-400.0,0.00019993,2]
[387146134,1758592240985,-401.73117039,0.00019993,2]
[387146135,1758592240995,-400.0,0.00019993,2]
[387146136,1758592241213,-400.0,0.00019993,2]